[Event "10th Floripa Open 2024"]
[Site "Florianopolis"]
[Date "2024.01.24"]
[Round "5.1"]
[White "Hoffman, Alejandro"]
[Black "Tari, Aryan"]
[Result "0-1"]
[ECO "D38"]
[WhiteElo "2358"]
[BlackElo "2623"]
[Annotator "TA"]
[PlyCount "102"]
[EventDate "2024.01.10"]
[EventType "swiss"]
[EventCountry "BRA"]
[SourceTitle "playchess.com"]
[Source "ChessBase"]
[SourceQuality "1"]
[TimeControl "5400+30"]

{[%evp 13,102,16,34,0,7,0,0,0,0,0,0,0,29,19,20,0,4,0,0,0,0,0,0,0,0,-7,0,0,0,0,0,0,2,14,13,0,23,0,18,0,0,0,0,0,0,0,0,-40,0,0,0,-110,-109,-109,-110,-434,-188,-188,-188,-188,-176,-190,-97,-121,-120,-128,-137,-131,-72,-122,-122,-129,-54,-53,-53,-55,-53,-53,-58,-69,-54,-60,-41,-69,-41,-47,0,-160,-148,-29990,-29991]} 1. d4 {[%emt 0:02:47]} d5 {[%emt 0:00:07]} 2. c4 {[%emt 0:00:20]} e6 {[%emt 0:00:16]} 3. Nc3 {[%emt 0:00:09]} Bb4 {[%emt 0:00:09]} 4. e3 {[%emt 0:02:34]} Nf6 {[%emt 0:00:43]} 5. Qa4+ {[%emt 0:00:58]} Nc6 {[%emt 0:00:29]} 6. Bd2 {[%emt 0:00:10]} O-O {[%emt 0:02:58]} 7. Nf3 {[%emt 0:00:26]} a6 {[%emt 0:04:28]} 8. Qc2 {[%emt 0:00:37] 8.Qc2 is better than 8.a3. D38: Queen's Gambit Declined: Ragozin Defence (4 Nf3 Bb4).} Re8 {[%emt 0:01:35]} 9. a3 {[%emt 0:03:20]} Bd6 {[%emt 0:07:34]} 10. h3 {[%emt 0:03:01] The position is equal.} h6 {[%emt 0:24:01]} 11. Rd1 {[%emt 0:02:12]} dxc4 {[%emt 0:02:20]} 12. Bxc4 {[%emt 0:00:09]} e5 {[%emt 0:03:22]} 13. O-O {[%emt 0:00:25]} (13. Qg6 Be6 14. Bxe6 Rxe6 $17) 13... e4 {[%emt 0:04:05]} 14. Nh2 {[%emt 0:00:31]} (14. Ne1 {keeps more tension.} b5 15. Ba2 b4 16. Nxe4 Nxe4 17. Qxc6 Bd7 18. Qc2) 14... Be6 {[%emt 0:13:46] Inhibits f3.} 15. Bxe6 {[%emt 0:01:03] [#]} Bxh2+ $146 {[%emt 0:02:08]} ({Predecessor:} 15... Rxe6 16. f4 exf3 17. Nxf3 Re8 18. e4 Bf8 19. Bf4 Ne7 20. Ne5 Nc8 21. Nxf7 Kxf7 {1-0 Hoffman,A (2477)-Lopez Azambuja,N (2333) URU-chTA Montevideo 2018 (3.11)}) 16. Kxh2 {[%emt 0:00:09]} Qd6+ {[%emt 0:03:21]} 17. Kg1 {[%emt 0:06:59]} Qxe6 {[%emt 0:00:07]} 18. Na4 {[%emt 0:09:01]} Rac8 {[%emt 0:03:38]} 19. Rc1 {[%emt 0:03:07]} Nb8 {[%emt 0:01:30][%cal Bc6b8,Bb8d7,Bd7f8,Bf8h7,Bh7g5][%mdl 32]} 20. Nc5 {[%emt 0:01:13]} Qd5 {[%emt 0:00:27]} 21. b4 {[%emt 0:15:07]} b6 {[%emt 0:05:28]} 22. Na4 {[%emt 0:01:07][%cal Oa4b6]} Re6 {[%emt 0:00:30]} 23. Nc3 {[%emt 0:01:39]} Qb7 {[%emt 0:02:10]} 24. Qb3 {[%emt 0:08:06]} Nbd7 {[%emt 0:00:29]} 25. a4 {[%emt 0:00:31]} Nf8 {[%emt 0:01:13]} 26. f4 {[%emt 0:07:40]} exf3 {[%emt 0:00:51]} 27. Rxf3 {[%emt 0:00:08]} N8h7 {[%emt 0:02:48]} 28. Rcf1 {[%emt 0:01:33][%cal Oe3e4]} Ng5 {[%emt 0:00:34]} 29. Rf5 {[%emt 0:00:19]} Rce8 {[%emt 0:03:40]} 30. Qc4 {[%emt 0:00:38]} Nge4 {[%emt 0:01:03]} (30... c6 {simplifies} 31. Qd3 b5 32. axb5 axb5 33. d5 Nxd5 34. Nxd5 cxd5 35. Rxd5 Rg6) 31. Nxe4 {[%emt 0:01:49]} Nxe4 {[%emt 0:00:31]} 32. Qc2 {[%emt 0:10:32]} (32. Rxf7 $1 $11 {was the only way to keep the balance.} Nxd2 {[%mdl 64] Discovered Attack} 33. Rf8+ Kh7 34. Qd3+ Qe4 35. Qxd2) 32... Ng3 $17 {[%emt 0:00:12]} 33. Rxf7 {[%emt 0:00:20]} Nxf1 {[%emt 0:00:10]} 34. Rxc7 $2 {[%emt 0:00:31][%mdl 8192]} (34. Rxf1 $17 b5 35. a5 (35. Qf5 $2 bxa4 36. Rc1 Rf6 $19)) 34... Nxe3 {[%emt 0:01:01]} (34... Qxc7 $142 35. Qxc7 Nxd2) 35. Bxe3 $19 {[%emt 0:00:39][%cal Bd2e3,Be3f2,Bf2g3,Bg3e5][%mdl 32]} Qd5 {[%emt 0:00:12]} 36. Bf2 {[%emt 0:00:18]} Rf8 {[%emt 0:01:35]} ({Stronger than} 36... Re2 37. Qg6 R2e7 38. Rxe7 Rxe7 39. Qxb6 $17) 37. Qd3 {[%emt 0:01:15]} Ref6 {[%emt 0:02:56]} ({Inferior is} 37... Qa2 38. Qc2 Qxc2 39. Rxc2) ({Black should play} 37... Rc6 $19 38. Bg3 Rxc7 39. Bxc7 b5 40. axb5 Qxb5 41. Qb3+ Kh7) 38. Bg3 $17 {[%emt 0:00:52]} R6f7 {[%emt 0:00:04]} 39. Rc1 {[%emt 0:02:57][%cal Bc7c1,Bc1d1,Bd1d3,Bd3b3][%mdl 32]} Rd8 {[%emt 0:00:27]} 40. Rd1 {[%emt 0:00:18]} Rfd7 {[%emt 0:02:17] Black is more active.} (40... Rc8 $142 41. Re1 b5 42. axb5 axb5) 41. Qxa6 {[%emt 0:00:33]} ({White should try} 41. Kh2) 41... Qb3 $1 {[%emt 0:00:05][%csl LRb4,LRd1,LRd4,LRg3]} 42. Rd3 {[%emt 0:00:13] [#]} Qxb4 {[%emt 0:01:09]} (42... Qb1+ $1 $17 43. Kh2 Rxd4 44. Rxd4 Rxd4 45. Qxb6 Rxb4 46. Qd8+ Kh7) 43. Be5 $1 $15 {[%emt 0:00:19]} Rf8 {[%emt 0:00:18] ( -> ...Qe1+)} 44. Kh2 {[%emt 0:00:31]} Qb1 {[%emt 0:01:44]} 45. Qc4+ {[%emt 0:02:03]} Kh7 $1 {[%emt 0:00:01]} 46. Rb3 $1 {[%emt 0:00:16]} Qe4 {[%emt 0:01:38]} 47. Rg3 {[%emt 0:01:07]} Rf2 {[%emt 0:01:15]} 48. Qe6 {[%emt 0:03:42]} Rb7 {[%emt 0:00:12]} 49. Rg4 {[%emt 0:02:04]} Qb1 {[%emt 0:00:26]} (49... Qf5 $15 {deserves consideration.} 50. Qb3 Rf7) 50. Rg3 $2 {[%emt 0:06:39] [#]} ({White has to play} 50. Bf4 $1 $11) 50... Rf1 $1 $17 {[%emt 0:00:27][%csl Gb1][%cal Rf1h1] Chess con chili.} 51. Rb3 $2 {[%emt 0:00:35][%mdl 8192]} (51. Re3 $17) 51... Qe1 {[%emt 0:01:04] Weighted Error Value: White=0.31/Black=0.16 (very precise)} 0-1

[Event "10th Floripa Open 2024"]
[Site "Florianopolis"]
[Date "2024.01.24"]
[Round "5.2"]
[White "El Debs, Felipe de Cresce"]
[Black "Umetsubo, Cesar Hidemitsu"]
[Result "1/2-1/2"]
[ECO "E06"]
[WhiteElo "2527"]
[BlackElo "2349"]
[Annotator "TA"]
[PlyCount "65"]
[EventDate "2024.01.10"]
[EventType "swiss"]
[EventCountry "BRA"]
[SourceTitle "playchess.com"]
[Source "ChessBase"]
[SourceQuality "1"]
[TimeControl "5400+30"]

{[%evp 18,65,17,10,14,17,10,0,20,16,37,14,9,35,62,53,45,65,59,63,72,72,66,56,53,31,36,39,39,37,56,56,57,57,58,56,55,0,0,0,0,0,0,0,0,0,0,0,0,0]} 1. d4 {[%emt 0:00:07]} d5 {[%emt 0:00:12]} 2. c4 {[%emt 0:00:05]} e6 {[%emt 0:00:04]} 3. Nf3 {[%emt 0:00:09]} Nf6 {[%emt 0:00:08]} 4. g3 {[%emt 0:00:11]} Be7 {[%emt 0:00:12]} 5. Bg2 {[%emt 0:00:10]} O-O {[%emt 0:00:06]} 6. Nc3 {[%emt 0:00:12]} dxc4 {[%emt 0:00:10]} 7. Ne5 {[%emt 0:00:23]} c5 {[%emt 0:00:09]} 8. dxc5 {[%emt 0:00:12]} Qxd1+ {[%emt 0:00:08]} 9. Nxd1 {[%emt 0:00:05]} Bxc5 {[%emt 0:00:28]} 10. Nxc4 {[%emt 0:00:19]} Nc6 {[%emt 0:03:47]} 11. Be3 {[%emt 0:00:07]} Bb4+ {[%emt 0:03:40]} 12. Nc3 {[%emt 0:00:50]} Nd5 {[%emt 0:02:40]} 13. Bd2 {[%emt 0:00:07]} Nxc3 {[%emt 0:01:22]} 14. bxc3 {[%emt 0:00:27]} Bc5 {[%emt 0:02:13]} 15. Rb1 {[%emt 0:03:57][%cal Ba1b1,Bb1b5,Bb5e5][%mdl 32]} e5 {[%emt 0:14:02]} 16. Rb5 {[%emt 0:08:31]} Be7 {[%emt 0:21:43][%cal Bc5e7,Be7f6,Bf6c3,Bc3b2][%mdl 32]} 17. Nxe5 {[%emt 0:03:27]} Nxe5 {[%emt 0:00:06]} 18. Rxe5 {[%emt 0:00:04]} Bf6 {[%emt 0:00:47]} 19. Rb5 {[%emt 0:03:06] White is more active.} Rd8 {[%emt 0:02:22]} 20. Rb2 {[%emt 0:04:38][%cal Oe1g1]} Bg4 {[%emt 0:07:55]} 21. h3 {[%emt 0:13:35]} (21. Bxb7 Rab8 22. Rb4 a5 23. Rxg4 Rxb7 $19) 21... Be6 {[%emt 0:00:50]} 22. O-O {[%emt 0:00:28]} (22. Bxb7 $2 {loses.} Rab8 23. Rb5 Rxb7 24. Rxb7 Bd5 (24... Bxa2 $2 {is the wrong capture.} 25. Rxa7 Be6 26. Ra3 $18) 25. Rxa7 Bxh1 $19) 22... Rac8 {[%emt 0:01:54]} 23. Bxb7 {[%emt 0:03:10]} Bxc3 {[%emt 0:01:23]} 24. Bxc8 {[%emt 0:01:24]} Bxb2 {[%emt 0:00:06]} 25. Bxe6 {[%emt 0:00:06]} Rxd2 $14 {[%emt 0:00:03][%mdl 4096] Endgame. KRB-KRB} 26. Bc4 {[%emt 0:00:18]} Rc2 {[%emt 0:00:05]} 27. Bb3 {[%emt 0:01:24]} (27. Bd3 $14 Rc1 28. Rxc1 Bxc1 29. e3) 27... Rxe2 $11 {[%emt 0:03:32] The position is equal.} 28. Rd1 {[%emt 0:06:44] [#] White threatens Rd8+ and mate.} Kf8 $1 {[%emt 0:34:23]} 29. Rd7 {[%emt 0:01:57]} Re7 {[%emt 0:00:00]} 30. Rd8+ {[%emt 0:00:06]} Re8 {[%emt 0:00:00]} 31. Rd7 {[%emt 0:00:18]} Re7 {[%emt 0:00:00]} 32. Rd8+ {[%emt 0:00:04]} Re8 {[%emt 0:00:00]} 33. Rd7 {[%emt 0:50:19] Weighted Error Value: White=0.05 (flawless) /Black=0.05 (flawless) .  Mistake:       	White=1     	---        Inaccurate:     	---       	Black=1      OK:         	White=8     	Black=10     Best:        	White=3     	Black=1      Strong:       	---       	Black=1} 1/2-1/2

[Event "10th Floripa Open 2024"]
[Site "Florianopolis"]
[Date "2024.01.24"]
[Round "5.3"]
[White "Ticona Rocabado, Licael Roderick"]
[Black "Cuenca Jimenez, Jose Fernando"]
[Result "1/2-1/2"]
[ECO "E94"]
[WhiteElo "2350"]
[BlackElo "2514"]
[Annotator "TA"]
[PlyCount "134"]
[EventDate "2024.01.10"]
[EventType "swiss"]
[EventCountry "BRA"]
[SourceTitle "playchess.com"]
[Source "ChessBase"]
[SourceQuality "1"]
[TimeControl "5400+30"]

{[%evp 13,134,31,31,31,50,21,23,25,25,30,48,54,78,69,66,43,41,0,54,12,11,-12,-13,-27,-11,-25,0,-14,-13,-16,-16,-15,0,0,0,0,0,0,0,0,0,0,0,-29,0,0,0,0,3,0,0,0,0,0,0,0,0,0,0,-126,0,-11,-11,-15,-15,-8,-7,-79,-87,-83,-68,-108,-95,-213,-140,-203,-133,-125,-110,-256,-233,-202,-93,-127,-108,-119,-60,-60,-66,-200,-191,-192,-203,-191,-196,-196,-204,-179,-107,-118,-77,-87,-64,-64,-64,-69,-51,-51,0,0,0,0,0,0,0,0,0,-8,0,0,0,0,0]} 1. d4 Nf6 2. c4 g6 3. Nc3 Bg7 4. e4 d6 5. Nf3 {[%emt 0:02:30]} O-O {[%emt 0:02:30]} 6. Be2 {[%emt 0:01:24]} Na6 {[%emt 0:00:00]} 7. O-O {[%emt 0:00:09]} e5 {[%emt 0:00:00]} 8. a3 {[%emt 1:30:27]} Bg4 9. Be3 {[%emt 0:00:00]} exd4 10. Nxd4 {[%emt 0:00:00] Weiß hat minimalen Vorteil.} Bxe2 11. Ndxe2 {[%emt 0:00:00]} Ng4 12. Bd4 {[%emt 0:00:00]} Bxd4 13. Nxd4 {[%emt 0:00:00]} Qh4 14. Nf3 {[%emt 0:00:00]} Qf6 15. Qd2 {[%emt 0:00:00]} c6 {Verhindert Nd5.} (15... Ne5 $11 16. Nxe5 dxe5) 16. Rad1 {[%emt 0:00:00]} Ne5 17. Nxe5 {[%emt 0:00:00]} dxe5 18. Qe3 {[%emt 0:00:00]} Qe7 {Verhindert Rd7} 19. Rd2 {[%emt 0:00:00]} Qc5 20. Qe2 {[%emt 0:00:00]} Rfd8 {Wehrt Rd7 ab} 21. Rfd1 {[%emt 0:00:00]} Rxd2 22. Rxd2 {[%emt 0:00:00]} Qe7 {Lässt Rd7 nicht zu} 23. Qd1 {[%emt 0:00:00]} Qe6 {[%cal Oa6c5]} 24. b3 {[%emt 0:00:00]} Nc5 {[%cal Ba6c5,Bc5e6,Be6d4][%mdl 32]} 25. Rd6 {[%emt 0:00:00]} Qe8 26. g3 {[%emt 0:00:00]} a5 27. Kg2 {[%emt 0:00:00]} Qe7 {[%cal Oc5b3]} 28. Rd2 {[%emt 0:00:00]} Qf8 29. b4 {[%emt 0:00:00]} Ne6 30. c5 {[%emt 0:00:00]} Rd8 31. Na4 {[%emt 0:00:00]} (31. bxa5 Rxd2 32. Qxd2 Qxc5 $17 (32... Nxc5 33. Ne2 $15)) (31. Rxd8 {vereinfacht} Qxd8 32. Qxd8+ Nxd8 33. Kf3) 31... axb4 32. axb4 {[%emt 0:00:00]} Rd4 33. Rxd4 {[%emt 0:00:00]} Nxd4 $11 {[%mdl 4096] Endspiel. KQN-KQN} 34. Nb6 {[%emt 0:00:00]} Qe7 35. Qa1 {[%emt 0:00:00]} Qe6 {Droht stark ...Qg4.} 36. Qa7 {[%emt 0:00:00]} (36. Qa3 $11) 36... Kg7 ({Besser ist} 36... h5 $1 $17 37. h4 (37. Qxb7 $2 Qb3 $19) 37... Qb3 38. Qb8+ Kh7 39. Qxe5 Qf3+ 40. Kg1 Nc2) 37. Qa3 {[%emt 0:00:00]} (37. Qxb7 $2 Qg4 38. Qa6 Qxe4+ 39. Kg1 Nf3+ 40. Kf1 Nxh2+ (40... Qxb4 $2 41. Qe2 $19) 41. Kg1 Nf3+ 42. Kf1 Nd2+ (42... Qxb4 $2 43. Kg2 $19) 43. Kg1 h5 $19 (43... Qxb4 $2 44. Qe2 $19) (43... Nf3+ $2 44. Kf1 $19)) 37... Qg4 38. Qd3 {[%emt 0:00:00]} Ne6 $36 {[%mdl 2048] ( -> ...Nf4+). Schwarz drückt.} 39. Kf1 $1 {[%emt 0:00:00]} Ng5 {[%cal Og5f3]} 40. Nc4 {[%emt 0:00:00]} (40. Nd7 $1 $11 Qxe4 (40... Nxe4 41. Nxe5 Qf5 42. Qd4 $15) 41. Qd6 (41. Qxe4 Nxe4 42. Nxe5 Nc3 $15)) 40... Nf3 $17 ({Ein No Go ist} 40... Nxe4 41. Nxe5 Qf5 42. Qd4 $11) ({Doch nicht} 40... Qxe4 41. Qxe4 Nxe4 42. Ke2 $11) 41. h4 {[%emt 0:00:00]} h6 42. Qe3 {[%emt 0:00:00]} Qe6 43. Na3 {[%emt 0:00:00]} (43. Ke2 $17) 43... Qh3+ $19 44. Ke2 {[%emt 0:00:00]} Nd4+ 45. Kd2 {[%emt 0:00:00]} Qf1 46. g4 {[%emt 0:00:00]} (46. Nc2 $17 {war die einzige Chance.}) 46... Qa1 47. Nc2 {[%emt 0:00:00]} Qa2 ({Jedoch nicht} 47... Qb2 48. Qc3 Qa2 49. f3 $17) (47... Nxc2 $1 $19 48. Kxc2 Qh1) 48. Qc3 $17 {[%emt 0:00:00]} Kf8 49. Qd3 {[%emt 0:00:00]} h5 (49... Kg8 $17 50. Qc3 Nxc2 51. Qxc2 Qe6) 50. gxh5 $15 {[%emt 0:00:00]} gxh5 51. Kc3 {[%emt 0:00:00]} (51. Qc3 $1 $15) 51... Qb3+ $19 52. Kd2 {[%emt 0:00:00] [#]} Nf3+ 53. Ke3 {[%emt 0:00:00]} Qxd3+ 54. Kxd3 {[%emt 0:00:00]} Nxh4 {KN-KN} 55. Na3 {[%emt 0:00:00] [#]} Ng2 (55... Ke7 $1 $19 56. Ke2 Ng2) 56. Nc4 $17 {[%emt 0:00:00]} f6 57. Nd6 {[%emt 0:00:00]} Nf4+ 58. Ke3 $1 {[%emt 0:00:00]} h4 {Und jetzt ...h3 wäre schön.} 59. Kf3 {[%emt 0:00:00]} Nd3 60. Nxb7 {[%emt 0:00:00]} Nxb4 (60... Ke7 $15) 61. Kg4 $11 {[%emt 0:00:00] Die Stellung ist ausgeglichen.} Nd3 62. f3 {[%emt 0:00:00]} Ne1 {[%cal Oh4h3]} 63. Nd8 {[%emt 0:00:00]} h3 64. Kxh3 {[%emt 0:00:00]} Nxf3 65. Nxc6 {[%emt 0:00:00]} Kf7 66. Kg4 {[%emt 0:00:00]} Nd2 67. Kf5 {[%emt 0:00:00]} Nb3 {Schwarz hatte alle Gewinnchancen.   Gewichteter Fehlerwert: Weiß=0.24 (präzise) /Schwarz=0.17 (sehr präzise) .  Fehler:       	Weiß=5     	Schwarz=6     Ungenau:       	Weiß=6     	Schwarz=3     OK:         	Weiß=19    	Schwarz=22    Bester:       	Weiß=8     	Schwarz=4     Stark:        	Weiß=2     	---} 1/2-1/2

[Event "10th Floripa Open 2024"]
[Site "Florianopolis"]
[Date "2024.01.24"]
[Round "5.4"]
[White "Labussiere, Victor"]
[Black "Rodriguez Vila, Andres"]
[Result "0-1"]
[ECO "D40"]
[WhiteElo "2328"]
[BlackElo "2407"]
[Annotator "RC"]
[PlyCount "72"]
[EventDate "2024.01.10"]
[EventType "swiss"]
[EventCountry "BRA"]
[SourceTitle "playchess.com"]
[Source "ChessBase"]
[SourceQuality "1"]
[TimeControl "5400+30"]

1. c4 {[%emt 0:05:11]} e6 {[%emt 0:08:45]} 2. Nf3 {[%emt 0:01:35]} d5 {[%emt 0:00:24]} 3. d4 {[%emt 0:00:31]} c5 {[%emt 0:00:07]} 4. e3 {[%emt 0:00:58]} Nc6 {[%emt 0:00:10]} 5. Nc3 {[%emt 0:04:24]} Nf6 {[%emt 0:00:53]} 6. a3 {[%emt 0:01:10]} cxd4 {[%emt 0:01:01]} 7. exd4 {[%emt 0:00:04]} Be7 {[%emt 0:00:04]} 8. Bd3 {[%emt 0:00:44]} dxc4 {[%emt 0:00:06]} 9. Bxc4 {[%emt 0:00:03]} O-O {[%emt 0:00:07]} 10. O-O {[%emt 0:00:11]} b6 {[%emt 0:00:04]} 11. Qd3 {[%emt 0:08:23]} Bb7 {[%emt 0:01:03]} 12. Rd1 {[%emt 0:01:32]} Qd6 {[%emt 0:03:26]} 13. Bg5 {[%emt 0:14:05]} Rad8 {[%emt 0:04:57]} 14. Bh4 {[%emt 0:04:56]} Nh5 {[%emt 0:00:33]} 15. Ne4 {[%emt 0:25:56]} Qf4 {[%emt 0:00:12]} 16. Neg5 {[%emt 0:02:06]} g6 {[%emt 0:01:30]} 17. g3 {[%emt 0:10:40]} Qb8 {[%emt 0:05:34]} 18. Qe3 {[%emt 0:07:04]} Ng7 {[%emt 0:00:37]} 19. g4 {[%emt 0:06:52]} Na5 {[%emt 0:06:46]} 20. Ba2 {[%emt 0:00:20]} Rde8 {[%emt 0:00:08]} 21. Ne5 {[%emt 0:01:06]} Qd8 {[%emt 0:01:56]} 22. b4 {[%emt 0:02:17]} Nc6 {[%emt 0:00:11]} 23. Rac1 {[%emt 0:00:22]} Nb8 {[%emt 0:00:22]} 24. Nexf7 {[%emt 0:01:14]} Rxf7 {[%emt 0:00:09]} 25. Nxe6 {[%emt 0:00:21]} Qd7 {[%emt 0:04:46]} 26. Rc7 {[%emt 0:00:47]} Bxh4 {[%emt 0:00:05]} 27. Rxd7 {[%emt 0:00:30]} Nxd7 {[%emt 0:00:01]} 28. f4 {[%emt 0:00:34]} Nf6 {[%emt 0:03:38]} 29. Qe5 {[%emt 0:00:32]} Nxg4 {[%emt 0:01:28]} 30. Qb5 {[%emt 0:00:25]} Bf2+ {[%emt 0:00:52]} 31. Kf1 {[%emt 0:00:06]} Ne3+ {[%emt 0:00:14]} 32. Ke2 {[%emt 0:00:59]} Nxd1 {[%emt 0:00:10]} 33. Kxd1 {[%emt 0:00:26]} Bf3+ {[%emt 0:02:47]} 34. Kd2 {[%emt 0:00:09]} Rxe6 {[%emt 0:00:13]} 35. Bxe6 {[%emt 0:00:13]} Nxe6 {[%emt 0:00:07]} 36. Qe8+ {[%emt 0:00:04]} Nf8 {[%emt 0:55:04]} 0-1

[Event "10th Floripa Open 2024"]
[Site "Florianopolis"]
[Date "2024.01.24"]
[Round "5.5"]
[White "Soriano Quispe, Ivan Excender"]
[Black "Perez Gormaz, Matias"]
[Result "1/2-1/2"]
[ECO "E53"]
[WhiteElo "2271"]
[BlackElo "2388"]
[Annotator "RC"]
[PlyCount "160"]
[EventDate "2024.01.10"]
[EventType "swiss"]
[EventCountry "BRA"]
[SourceTitle "playchess.com"]
[Source "ChessBase"]
[SourceQuality "1"]
[TimeControl "5400+30"]

1. d4 {[%emt 0:06:26]} Nf6 {[%emt 0:00:14]} 2. c4 {[%emt 0:00:07]} e6 {[%emt 0:00:12]} 3. Nc3 {[%emt 0:00:13]} Bb4 {[%emt 0:00:08]} 4. e3 {[%emt 0:00:13]} O-O {[%emt 0:00:09]} 5. Bd3 {[%emt 0:00:13]} d5 {[%emt 0:03:19]} 6. a3 {[%emt 0:00:06]} Bxc3+ {[%emt 0:01:29]} 7. bxc3 {[%emt 0:00:07]} dxc4 {[%emt 0:07:16]} 8. Bxc4 {[%emt 0:00:07]} c5 {[%emt 0:00:05]} 9. Nf3 {[%emt 0:00:12]} Qc7 {[%emt 0:00:20]} 10. Be2 {[%emt 0:01:07]} b6 {[%emt 0:01:09]} 11. Bb2 {[%emt 0:00:11]} Bb7 {[%emt 0:02:21]} 12. O-O {[%emt 0:00:11]} Rd8 {[%emt 0:00:53]} 13. Re1 {[%emt 0:00:08]} Nc6 {[%emt 0:00:27]} 14. Rc1 {[%emt 0:03:06]} Rac8 {[%emt 0:14:26]} 15. c4 {[%emt 0:09:27]} Ne7 {[%emt 0:20:06]} 16. Qb3 {[%emt 0:04:17]} cxd4 {[%emt 0:02:35]} 17. exd4 {[%emt 0:01:56]} Qf4 {[%emt 0:01:02]} 18. Rcd1 {[%emt 0:07:36]} Ng6 {[%emt 0:11:58]} 19. Bc1 {[%emt 0:16:05]} Qc7 {[%emt 0:00:56]} 20. Bg5 {[%emt 0:08:10]} Rd7 {[%emt 0:05:46]} 21. h3 {[%emt 0:08:58]} Ne4 {[%emt 0:02:05]} 22. Be3 {[%emt 0:00:32]} Nd6 {[%emt 0:01:16]} 23. d5 {[%emt 0:06:23]} e5 {[%emt 0:04:17]} 24. Nd2 {[%emt 0:26:39]} f5 {[%emt 0:01:09]} 25. f3 {[%emt 0:00:00]} Qd8 {[%emt 0:01:03]} 26. Qa4 {[%emt 0:00:00]} Ba8 {[%emt 0:02:19]} 27. Qb4 {[%emt 0:00:00]} Rdc7 {[%emt 0:02:01]} 28. a4 {[%emt 0:00:00]} Ne7 {[%emt 0:00:36]} 29. a5 {[%emt 0:00:00]} b5 {[%emt 0:00:41]} 30. c5 {[%emt 0:00:00]} Nxd5 {[%emt 0:00:03]} 31. Qb3 {[%emt 0:00:00]} Nf7 {[%emt 0:00:15]} 32. Nb1 {[%emt 0:00:00]} b4 {[%emt 0:13:33]} 33. Rd2 {[%emt 0:00:00]} Bc6 {[%emt 0:01:35]} 34. Bc4 {[%emt 0:00:00]} Rd7 {[%emt 0:00:21]} 35. Red1 {[%emt 0:00:29]} Nxe3 {[%emt 0:00:11]} 36. Bxf7+ {[%emt 0:00:17]} Kf8 {[%emt 0:00:02]} 37. Rxd7 {[%emt 0:02:17]} Bxd7 {[%emt 0:00:04]} 38. Bh5 {[%emt 0:00:42]} g6 {[%emt 0:01:53]} 39. Qxe3 {[%emt 0:00:08]} Qe7 {[%emt 0:00:45]} 40. Qh6+ {[%emt 0:00:32]} Ke8 {[%emt 0:00:52]} 41. Bxg6+ {[%emt 0:00:07]} hxg6 {[%emt 0:00:02]} 42. Qh8+ {[%emt 0:01:47]} Kf7 {[%emt 0:00:10]} 43. Qh7+ {[%emt 0:00:07]} Kf6 {[%emt 0:00:30]} 44. Rxd7 {[%emt 0:00:28]} Qxh7 {[%emt 0:00:02]} 45. Rxh7 {[%emt 0:00:06]} Rxc5 {[%emt 0:00:01]} 46. Nd2 {[%emt 0:00:15]} Rxa5 {[%emt 0:00:04]} 47. Rb7 {[%emt 0:01:41]} Rd5 {[%emt 0:02:47]} 48. Nb3 {[%emt 0:00:36]} a5 {[%emt 0:00:05]} 49. Ra7 {[%emt 0:01:21]} Rd3 {[%emt 0:00:04]} 50. Nc5 {[%emt 0:00:40]} Ra3 {[%emt 0:00:40]} 51. Rb7 {[%emt 0:00:59]} Kg5 {[%emt 0:00:16]} 52. Kf2 {[%emt 0:00:37]} Rc3 {[%emt 0:01:25]} 53. Rb5 {[%emt 0:00:23]} Kh4 {[%emt 0:00:31]} 54. Rxa5 {[%emt 0:00:40]} Rc2+ {[%emt 0:00:01]} 55. Ke3 {[%emt 0:00:37]} Rxg2 {[%emt 0:00:03]} 56. Nd3 {[%emt 0:00:33]} e4 {[%emt 0:00:42]} 57. fxe4 {[%emt 0:00:15]} Rg3+ {[%emt 0:00:25]} 58. Kd4 {[%emt 0:00:46]} fxe4 {[%emt 0:00:10]} 59. Kxe4 {[%emt 0:00:24]} Kxh3 {[%emt 0:00:41]} 60. Rb5 {[%emt 0:00:09]} Rg4+ {[%emt 0:00:47]} 61. Kf3 {[%emt 0:00:17]} Rg3+ {[%emt 0:00:12]} 62. Ke2 {[%emt 0:00:06]} Rg2+ {[%emt 0:00:28]} 63. Nf2+ {[%emt 0:00:02]} Kh4 {[%emt 0:00:26]} 64. Rxb4+ {[%emt 0:00:08]} Kh5 {[%emt 0:00:06]} 65. Kf3 {[%emt 0:00:15]} Rg5 {[%emt 0:00:38]} 66. Rb8 {[%emt 0:00:10]} Ra5 {[%emt 0:01:26]} 67. Ne4 {[%emt 0:00:01]} Ra3+ {[%emt 0:00:41]} 68. Kf4 {[%emt 0:00:02]} g5+ {[%emt 0:00:11]} 69. Nxg5 {[%emt 0:00:23]} Ra4+ {[%emt 0:00:10]} 70. Ne4 {[%emt 0:00:04]} Kg6 {[%emt 0:00:07]} 71. Rb6+ {[%emt 0:00:02]} Kf7 {[%emt 0:00:11]} 72. Rb5 {[%emt 0:00:11]} Ke6 {[%emt 0:00:39]} 73. Re5+ {[%emt 0:00:03]} Kd7 {[%emt 0:00:11]} 74. Rd5+ {[%emt 0:00:10]} Ke6 {[%emt 0:00:18]} 75. Rd6+ {[%emt 0:00:02]} Ke7 {[%emt 0:00:06]} 76. Rb6 {[%emt 0:00:15]} Kd7 {[%emt 0:00:14]} 77. Ke5 {[%emt 0:00:01]} Ra5+ {[%emt 0:00:13]} 78. Kd4 {[%emt 0:00:02]} Ra1 {[%emt 0:00:32]} 79. Nc3 {[%emt 0:00:15]} Rh1 {[%emt 0:00:15]} 80. Kc4 {[%emt 0:00:25]} Rc1 {[%emt 0:00:13]} 1/2-1/2